fUST/lending_fUST_20240502
["ID","MTS","AMOUNT","RATE_DAILY","PERIOD"]
[325223620,1714596646153,-500.0,0.00053424,120]
[325223621,1714596646163,-500.0,0.00053424,120]
[325223622,1714596646172,-552.05,0.00053424,120]
[325223623,1714596646181,-500.0,0.00053424,21]
[325223624,1714596646190,-500.0,0.00053424,120]
[325223625,1714596646199,-500.0,0.00053424,120]
[325223626,1714596646209,-500.0,0.00053424,120]
[325223627,1714596646219,-500.0,0.00053424,120]
[325223628,1714596646229,-770.19,0.00053424,120]
[325223629,1714596646238,-3241.16,0.00053424,120]
[325223630,1714596646247,-500.0,0.00053424,120]
[325223631,1714596646256,-624.7,0.00053424,120]
[325223632,1714596646265,-500.0,0.00053424,120]
[325223633,1714596646275,-199.14717222,0.00053424,120]
[325223634,1714596646284,-1071.63,0.00053424,120]
[325223635,1714596646294,-500.0,0.00053424,120]
[325223636,1714596646303,-1139.17,0.00053424,120]
[325223637,1714596646312,-629.98,0.00053424,7]
[325223638,1714596646321,-500.0,0.00053424,120]
[325223639,1714596646331,-513.73,0.00053424,120]
[325223640,1714596646339,-1040.84,0.00053424,120]
[325223641,1714596646348,-6873.87,0.00053424,120]
[325223642,1714596646358,-500.0,0.00053424,120]
[325223643,1714596646367,-500.0,0.00053424,120]
[325223644,1714596646377,-1819.25,0.00053424,2]
[325223645,1714596646386,-500.0,0.00053424,120]
[325223646,1714596646395,-500.0,0.00053424,120]
[325223647,1714596646404,-807.38,0.00053424,120]
[325223648,1714596646413,-684.4,0.00053424,120]
[325223649,1714596646423,-500.0,0.00053424,120]
[325223650,1714596646433,-1563.93,0.00053424,120]
[325223651,1714596646442,-500.0,0.00053424,120]
[325223652,1714596646452,-880.74,0.00053424,120]
[325223653,1714596646460,-500.0,0.00053424,120]
[325223654,1714596646471,-500.0,0.00053424,120]
[325223655,1714596646480,-500.0,0.00053424,120]
[325223656,1714596646489,-500.0,0.00053424,120]
[325223657,1714596646498,-500.0,0.00053424,120]
[325223658,1714596646507,-500.0,0.00053424,120]
[325223659,1714596646516,-500.0,0.00053424,120]
[325223660,1714596646525,-905.71,0.00053424,120]
[325223661,1714596646534,-500.0,0.00053424,120]
[325223662,1714596646543,-500.0,0.00053424,120]
[325223663,1714596646553,-500.0,0.00053424,120]
[325223664,1714596646562,-500.0,0.00053424,120]
[325223665,1714596646572,-500.0,0.00053424,3]
[325223666,1714596646581,-500.0,0.00053424,120]
[325223667,1714596646591,-1006.03,0.00053424,120]
[325223668,1714596646600,-300.0,0.00053424,2]
[325223669,1714596646610,-990.64,0.00053424,120]
[325223670,1714596646619,-500.0,0.00053424,120]
[325223671,1714596646628,-500.0,0.00053424,120]
[325223672,1714596646637,-529.69,0.00053424,120]
[325223673,1714596646646,-527.23596349,0.00053424,120]
[325223674,1714596646655,-500.0,0.00053424,120]
[325223675,1714596646664,-500.0,0.00053424,120]
[325223676,1714596646673,-957.98,0.00053424,120]
[325223677,1714596646682,-957.45,0.00053424,120]
[325223678,1714596646691,-500.0,0.00053424,120]
[325223679,1714596646700,-501.28,0.00053424,120]
[325223680,1714596646709,-500.0,0.00053424,120]
[325223681,1714596646719,-500.0,0.00053424,120]
[325223682,1714596646728,-1396.65,0.00053424,30]
[325223683,1714596646737,-273.91594634,0.00053424,120]
[325223684,1714596646746,-510.78427862,0.00053424,120]
[325223685,1714596646755,-500.0,0.00053424,120]
[325223686,1714596646764,-500.0,0.00053424,120]
[325223687,1714596646773,-13131.9,0.00053424,120]
[325223688,1714596646783,-649.29,0.00053424,120]
[325223689,1714596646792,-500.0,0.00053424,120]
[325223690,1714596646801,-500.0,0.00053424,120]
[325223691,1714596646810,-500.0,0.00053424,120]
[325223692,1714596646819,-5415.88,0.00053424,120]
[325223693,1714596646828,-500.0,0.00053424,120]
[325223694,1714596646838,-524.46,0.00053424,120]
[325223695,1714596646847,-500.0,0.00053424,120]
[325223696,1714596646857,-500.0,0.00053424,120]
[325223697,1714596646866,-555.29371673,0.00053424,120]
[325223698,1714596646875,-1124.84,0.00053424,120]
[325223699,1714596646885,-187.36688319,0.00053424,120]
[325223700,1714596646894,-500.0,0.00053424,120]
[325223701,1714596646904,-725.84,0.00053424,120]
[325223702,1714596646913,-591.83090093,0.00053424,120]
[325223703,1714596647560,-500.0,0.00052876,120]
[325223704,1714596647570,-500.0,0.00052876,120]
[325223705,1714596647579,-500.0,0.00052876,120]
[325223706,1714596647588,-500.0,0.00052876,120]
[325223707,1714596647597,-500.0,0.00052876,120]
[325223708,1714596647607,-129.72909907,0.00053424,120]
[325223709,1714596647616,-2624.92,0.00053424,120]
[325223710,1714596647626,-773.09,0.00053424,120]
[325223711,1714596647635,-672.9,0.00053424,120]
[325223712,1714596647645,-671.69,0.00053424,120]
[325223713,1714596647654,-133.73778147,0.00053424,120]
[325223722,1714596648564,-500.0,0.00052876,120]
[325223723,1714596648574,-500.0,0.00052876,120]
[325223724,1714596648583,-500.0,0.00052876,120]
[325223725,1714596648593,-376.39,0.00053414,3]
[325223726,1714596648602,-366.26221853,0.00053424,120]
[325223727,1714596648612,-500.0,0.00053424,120]
[325223728,1714596648621,-904.57,0.00053424,120]
[325223729,1714596648631,-4150.6,0.00053424,120]
[325223730,1714596648640,-1064.37,0.00053424,120]
[325223731,1714596648650,-500.0,0.00053424,120]
[325223732,1714596648659,-500.0,0.00053424,120]
[325223733,1714596648669,-500.0,0.00053424,120]
[325223734,1714596648679,-708.55,0.00053424,120]
[325223735,1714596648688,-500.0,0.00053424,120]
[325223736,1714596648698,-500.0,0.00053424,120]
[325223737,1714596648707,-500.0,0.00053424,120]
[325223738,1714596648716,-500.0,0.00053424,120]
[325223739,1714596648726,-500.0,0.00053424,120]
[325223740,1714596648735,-500.0,0.00053424,120]
[325223741,1714596648744,-500.0,0.00053424,120]
[325223742,1714596648754,-500.0,0.00053424,120]
[325223743,1714596648764,-500.0,0.00053424,120]
[325223744,1714596648773,-747.59,0.00053424,120]
[325223745,1714596648783,-2139.31,0.00053424,120]
[325223746,1714596648792,-500.0,0.00053424,120]
[325223747,1714596648802,-500.0,0.00053424,120]
[325223748,1714596648811,-1819.15,0.00053424,120]
[325223749,1714596648821,-893.59,0.00053424,120]
[325223750,1714596648830,-2548.41,0.00053424,120]
[325223751,1714596648839,-647.78,0.00053424,120]
[325223752,1714596648849,-163.15641376,0.00053424,120]
[325223753,1714596648859,-500.0,0.00053424,120]
[325223754,1714596648868,-972.62,0.00053424,120]
[325223755,1714596648877,-500.0,0.00053424,120]
[325223756,1714596648887,-500.0,0.00053424,120]
[325223757,1714596648896,-500.0,0.00053424,120]
[325223758,1714596648905,-500.0,0.00053424,120]
[325223759,1714596648915,-500.0,0.00053424,120]
[325223760,1714596648924,-519.25913598,0.00053424,120]
[325223761,1714596648934,-953.99,0.00053424,120]
[325223762,1714596648943,-1932.29,0.00053424,120]
[325223763,1714596648954,-912.85,0.00053424,120]
[325223764,1714596648966,-631.99,0.00053424,120]
[325223765,1714596648976,-500.0,0.00053424,120]
[325223766,1714596648985,-564.95,0.00053424,120]
[325223767,1714596648994,-498.43755309,0.00053424,120]
[325223768,1714596649006,-771.7,0.00053424,120]
[325223769,1714596649015,-500.0,0.00053424,120]
[325223770,1714596649024,-500.0,0.00053424,120]
[325223771,1714596649037,-500.0,0.00053424,120]
[325223772,1714596649047,-500.0,0.00053424,5]
[325223773,1714596649056,-606.08416733,0.00053424,120]
[325223774,1714596649066,-500.0,0.00053424,120]
[325223775,1714596649075,-263.31,0.00053424,120]
[325223776,1714596649085,-323.58,0.00053424,120]
[325223777,1714596649095,-212.21,0.00053424,120]
[325223778,1714596649104,-769.4,0.00053566,30]
[325223779,1714596649113,-1084.34,0.00053971,7]
[325223780,1714596649123,-1084.34,0.00053971,7]
[325223781,1714596649132,-1084.34,0.00053971,7]
[325223782,1714596649141,-1084.34,0.00053971,7]
[325223783,1714596649151,-1084.34,0.00053971,7]
[325223784,1714596649160,-1084.34,0.00053971,7]
[325223785,1714596649169,-1084.34,0.00053971,7]
[325223786,1714596649178,-1084.34,0.00053971,7]
[325223787,1714596649187,-1084.34,0.00053971,7]
[325223788,1714596649197,-1084.34,0.00053971,7]
[325223789,1714596649206,-500.0,0.00053971,120]
[325223790,1714596649216,-500.0,0.00053971,120]
[325223791,1714596649226,-223.19253733,0.00053971,120]
[325223792,1714596649236,-166.666666,0.00053972,2]
[325223793,1714596649246,-500.0,0.00053972,120]
[325223794,1714596649255,-500.0,0.00053972,120]
[325223795,1714596649265,-500.0,0.00053972,120]
[325223796,1714596649274,-500.0,0.00053972,120]
[325223797,1714596649283,-605.36,0.00053972,120]
[325223798,1714596649294,-635.9,0.00053972,120]
[325223799,1714596649303,-500.0,0.00053972,120]
[325223800,1714596649312,-600.0,0.00053972,120]
[325223801,1714596649322,-500.0,0.00053972,120]
[325223802,1714596649332,-228.12150496,0.00053972,120]
[325223803,1714596649342,-500.0,0.00053972,120]
[325223804,1714596649352,-500.0,0.00053972,120]
[325223805,1714596649361,-905.44,0.00053972,120]
[325223806,1714596649371,-500.0,0.00053972,120]
[325223807,1714596649381,-500.0,0.00053972,120]
[325223808,1714596649390,-1823.07,0.00053972,120]
[325223809,1714596649400,-500.0,0.00053972,120]
[325223810,1714596649410,-393.2701367,0.00053972,120]
[325223811,1714596649419,-500.0,0.00053972,120]
[325223812,1714596649430,-1540.18,0.00053972,120]
[325223813,1714596649439,-500.0,0.00053972,120]
[325223814,1714596649449,-500.0,0.00053972,120]
[325223815,1714596649459,-747.85,0.00053972,120]
[325223816,1714596649470,-505.45309806,0.00053972,120]
[325223817,1714596649479,-500.0,0.00053972,120]
[325223818,1714596649489,-500.0,0.00053972,120]
[325223819,1714596649499,-500.0,0.00053972,120]
[325223820,1714596649508,-582.8,0.00053972,120]
[325223821,1714596649518,-500.0,0.00053972,120]
[325223822,1714596649528,-500.0,0.00053972,120]
[325223823,1714596649538,-500.0,0.00053972,120]
[325223824,1714596649547,-500.0,0.00053972,120]
[325223825,1714596649557,-500.0,0.00053972,120]
[325223826,1714596649567,-783.32,0.00053972,120]
[325223827,1714596649576,-500.0,0.00053972,120]
[325223828,1714596649586,-500.0,0.00053972,30]
[325223829,1714596649595,-500.0,0.00053972,120]
[325223830,1714596649605,-183.6824219,0.00053972,120]
[325223831,1714596649616,-660.58,0.00053972,120]
[325223832,1714596649626,-500.0,0.00053972,120]
[325223833,1714596649635,-528.91,0.00053972,120]
[325223834,1714596649645,-500.0,0.00053972,120]
[325223835,1714596649659,-500.0,0.00053972,120]
[325223836,1714596649668,-500.0,0.00053972,120]
[325223837,1714596649678,-500.0,0.00053972,120]
[325223838,1714596649688,-651.79,0.00053972,120]
[325223839,1714596649697,-569.39,0.00053972,120]
[325223840,1714596649707,-533.64,0.00053972,120]
[325223841,1714596649717,-893.16,0.00053972,120]
[325223842,1714596649727,-500.0,0.00053972,120]
[325223843,1714596649736,-750.74,0.00053972,120]
[325223844,1714596649746,-500.0,0.00053972,120]
[325223845,1714596649756,-500.0,0.00053972,120]
[325223846,1714596649766,-918.03,0.00053972,120]
[325223847,1714596649927,-500.0,0.00053972,120]
[325223848,1714596649937,-500.0,0.00053972,120]
[325223849,1714596649947,-500.0,0.00053972,120]
[325223850,1714596649959,-809.76,0.00053972,120]
[325223851,1714596649969,-503.63624467,0.00053972,120]
[325223852,1714596649979,-505.21605141,0.00053972,120]
[325223853,1714596649988,-816.25,0.00053972,120]
[325223854,1714596649999,-500.0,0.00053972,120]
[325223855,1714596650008,-676.4,0.00053972,120]
[325223856,1714596650017,-500.0,0.00053972,120]
[325223857,1714596650026,-500.0,0.00053972,120]
[325223858,1714596650038,-564.58411584,0.00053972,120]
[325223859,1714596650048,-500.0,0.00053972,120]
[325223860,1714596650058,-725.28,0.00053972,120]
[325223861,1714596650067,-617.03,0.00053972,120]
[325223862,1714596650076,-500.0,0.00053972,60]
[325223863,1714596650085,-500.0,0.00053972,120]
[325223864,1714596650095,-500.0,0.00053972,120]
[325223865,1714596650105,-500.0,0.00053972,120]
[325223866,1714596650114,-500.0,0.00053972,120]
[325223867,1714596650124,-497.89974434,0.00053972,120]
[325223868,1714596650134,-500.0,0.00053972,120]
[325223869,1714596650143,-807.48,0.00053972,120]
[325223870,1714596650152,-747.13,0.00053972,120]
[325223871,1714596650161,-500.0,0.00053972,120]
[325223872,1714596650171,-500.0,0.00053972,2]
[325223873,1714596650180,-880.55,0.00053972,120]
[325223874,1714596650189,-772.32,0.00053972,120]
[325223875,1714596650198,-500.0,0.00053972,120]
[325223876,1714596650207,-500.0,0.00053972,120]
[325223877,1714596650217,-500.0,0.00053972,120]
[325223878,1714596650227,-1424.37,0.00053972,120]
[325223879,1714596650236,-902.14,0.00053972,120]
[325223880,1714596650245,-500.0,0.00053972,120]
[325223881,1714596650255,-500.0,0.00053972,2]
[325223882,1714596650264,-622.31,0.00053972,120]
[325223883,1714596650273,-908.32,0.00053972,120]
[325223884,1714596650282,-500.0,0.00053972,120]
[325223885,1714596650292,-500.0,0.00053972,120]
[325223886,1714596650302,-1274.48,0.00053972,120]
[325223887,1714596650311,-500.0,0.00053972,120]
[325223888,1714596650321,-500.0,0.00053972,120]
[325223889,1714596650330,-500.0,0.00053972,120]
[325223890,1714596650339,-500.0,0.00053972,120]
[325223891,1714596650348,-500.0,0.00053972,120]
[325223892,1714596650358,-500.0,0.00053972,120]
[325223893,1714596650367,-500.0,0.00053972,120]
[325223894,1714596650377,-500.0,0.00053972,120]
[325223895,1714596650386,-500.0,0.00053972,120]
[325223896,1714596650395,-505.13,0.00053972,120]
[325223897,1714596650406,-500.0,0.00053972,120]
[325223898,1714596650416,-2748.45,0.00053972,120]
[325223899,1714596650426,-261.48939397,0.00053972,120]
[325223900,1714596650436,-2748.72,0.00053972,120]
[325223901,1714596650446,-500.0,0.00053972,120]
[325223902,1714596650455,-751.55,0.00053972,120]
[325223903,1714596650464,-500.0,0.00053972,120]
[325223904,1714596650475,-500.0,0.00053972,120]
[325223905,1714596650485,-500.0,0.00053972,120]
[325223906,1714596650494,-500.0,0.00053972,120]
[325223907,1714596650503,-500.0,0.00053972,120]
[325223908,1714596650512,-500.0,0.00053972,120]
[325223909,1714596650522,-891.08,0.00053972,120]
[325223910,1714596650532,-542.04,0.00053972,120]
[325223911,1714596650541,-500.0,0.00053972,120]
[325223912,1714596650551,-500.0,0.00053972,120]
[325223913,1714596650560,-718.42,0.00053972,120]
[325223914,1714596650569,-500.0,0.00053972,120]
[325223915,1714596650578,-876.77,0.00053972,120]
[325223916,1714596650587,-500.0,0.00053972,120]
[325223917,1714596650597,-500.0,0.00053972,120]
[325223918,1714596650606,-156.13429206,0.00053972,120]
[325223919,1714596650615,-500.0,0.00053972,120]
[325223920,1714596650624,-500.0,0.00053972,120]
[325223921,1714596650634,-500.0,0.00053972,120]
[325223922,1714596650643,-500.0,0.00053972,120]
[325223923,1714596650652,-203.79478529,0.00053972,120]
[325223924,1714596650662,-500.0,0.00053972,120]
[325223925,1714596650671,-500.0,0.00053972,120]
[325223926,1714596650681,-500.0,0.00053972,120]
[325223927,1714596650690,-500.0,0.00053972,120]
[325223928,1714596650699,-500.0,0.00053972,120]
[325223929,1714596650709,-500.0,0.00053972,120]
[325223930,1714596650718,-330.1851767,0.00053972,120]
[325223931,1714596650729,-500.0,0.00053972,120]
[325223932,1714596650738,-500.0,0.00053972,120]
[325223933,1714596650747,-500.0,0.00053972,120]
[325223934,1714596650756,-500.0,0.00053972,120]
[325223935,1714596650766,-597.36,0.00053972,120]
[325223936,1714596650775,-500.0,0.00053972,120]
[325223937,1714596650784,-543.06,0.00053972,120]
[325223938,1714596650794,-500.0,0.00053972,120]
[325223939,1714596650803,-500.0,0.00053972,120]
[325223940,1714596650812,-1000.0,0.00053972,120]
[325223941,1714596650821,-500.0,0.00053972,120]
[325223942,1714596650830,-500.0,0.00053972,120]
[325223943,1714596650839,-847.59,0.00053972,120]
[325223944,1714596650849,-500.0,0.00053972,120]
[325223945,1714596650858,-500.0,0.00053972,120]
[325223946,1714596650867,-500.0,0.00053972,120]
[325223947,1714596650876,-500.0,0.00053972,120]
[325223948,1714596650886,-500.0,0.00053972,120]
[325223949,1714596650895,-552.66,0.00053972,120]
[325223950,1714596650904,-737.95,0.00053972,120]
[325223951,1714596650913,-500.0,0.00053972,120]
[325223952,1714596650922,-500.0,0.00053972,120]
[325223953,1714596650931,-502.06423291,0.00053972,120]
[325223954,1714596650940,-500.0,0.00053972,120]
[325223955,1714596650951,-413.86804077,0.00053972,120]
[325223956,1714596650962,-500.0,0.00053972,60]
[325223957,1714596650972,-504.37437888,0.00053972,120]
[325223958,1714596650981,-735.13,0.00053972,120]
[325223959,1714596650991,-536.44409236,0.00053972,120]
[325223960,1714596651000,-500.0,0.00053972,120]
[325223961,1714596651010,-500.0,0.00053972,21]
[325223962,1714596651019,-500.0,0.00053972,120]
[325223963,1714596651028,-500.0,0.00053972,120]
[325223964,1714596651038,-500.0,0.00053972,120]
[325223965,1714596651047,-3241.16,0.00053972,120]
[325223966,1714596651056,-500.0,0.00053972,120]
[325223967,1714596651067,-624.7,0.00053972,120]
[325223968,1714596651075,-500.0,0.00053972,120]
[325223969,1714596651084,-1071.63,0.00053972,120]
[325223970,1714596651093,-500.0,0.00053972,120]
[325223971,1714596651103,-1139.17,0.00053972,120]
[325223972,1714596651112,-629.98,0.00053972,7]
[325223973,1714596651121,-513.73,0.00053972,120]
[325223974,1714596651131,-1040.84,0.00053972,120]
[325223975,1714596651141,-6873.87,0.00053972,120]
[325223976,1714596651150,-500.0,0.00053972,120]
[325223977,1714596651160,-500.0,0.00053972,120]
[325223978,1714596651170,-1819.25,0.00053972,2]
[325223979,1714596651179,-503.80691186,0.00053972,120]
[325223980,1714596651189,-500.0,0.00053972,120]
[325223981,1714596651198,-807.38,0.00053972,120]
[325223982,1714596651207,-684.4,0.00053972,120]
[325223983,1714596651217,-1563.93,0.00053972,120]
[325223984,1714596651228,-500.0,0.00053972,120]
[325223985,1714596651239,-880.74,0.00053972,120]
[325223986,1714596651249,-500.0,0.00053972,120]
[325223987,1714596651258,-500.0,0.00053972,120]
[325223988,1714596651268,-500.0,0.00053972,120]
[325223989,1714596651278,-500.0,0.00053972,120]
[325223990,1714596651287,-500.0,0.00053972,120]
[325223991,1714596651297,-500.0,0.00053972,120]
[325223992,1714596651307,-500.0,0.00053972,120]
[325223993,1714596651316,-905.71,0.00053972,120]
[325223994,1714596651326,-500.0,0.00053972,120]
[325223995,1714596651335,-327.77346043,0.00053972,120]
[325223996,1714596651344,-500.0,0.00053972,120]
[325223997,1714596651354,-500.0,0.00053972,120]
[325223998,1714596651366,-500.0,0.00053972,3]
[325223999,1714596651377,-500.0,0.00053972,120]
[325224000,1714596651388,-1006.03,0.00053972,120]
[325224001,1714596651399,-990.64,0.00053972,120]
[325224002,1714596651410,-500.0,0.00053972,120]
[325224003,1714596651419,-500.0,0.00053972,120]
[325224004,1714596651429,-529.69,0.00053972,120]
[325224005,1714596651438,-500.0,0.00053972,120]
[325224006,1714596651447,-500.0,0.00053972,120]
[325224007,1714596651457,-957.98,0.00053972,120]
[325224008,1714596651466,-957.45,0.00053972,120]
[325224009,1714596651476,-500.0,0.00053972,120]
[325224010,1714596651485,-501.28,0.00053972,120]
[325224011,1714596651495,-500.0,0.00053972,120]
[325224012,1714596651504,-500.0,0.00053972,120]
[325224013,1714596651513,-1396.65,0.00053972,30]
[325224014,1714596651523,-213.89646646,0.00053972,120]
[325224015,1714596651532,-13131.9,0.00053972,120]
[325224016,1714596651542,-649.29,0.00053972,120]
[325224017,1714596651551,-500.0,0.00053972,120]
[325224018,1714596651560,-500.0,0.00053972,120]
[325224019,1714596651570,-5415.88,0.00053972,120]
[325224020,1714596651579,-500.0,0.00053972,120]
[325224021,1714596651588,-524.46,0.00053972,120]
[325224022,1714596651597,-500.0,0.00053972,120]
[325224023,1714596651607,-500.0,0.00053972,120]
[325224024,1714596651616,-1124.84,0.00053972,120]
[325224025,1714596651626,-725.84,0.00053972,120]
[325224026,1714596651635,-721.56,0.00053972,120]
[325224027,1714596651644,-2624.92,0.00053972,120]
[325224028,1714596651654,-773.09,0.00053972,120]
[325224029,1714596651663,-672.9,0.00053972,120]
[325224030,1714596651672,-671.69,0.00053972,120]
[325224031,1714596651682,-500.0,0.00053972,120]
[325224032,1714596651692,-504.97869407,0.00053972,120]
[325224033,1714596651701,-904.57,0.00053972,120]
[325224034,1714596651710,-4150.6,0.00053972,120]
[325224035,1714596651719,-1064.37,0.00053972,120]
[325224036,1714596651730,-502.27448261,0.00053972,120]
[325224037,1714596651739,-500.0,0.00053972,120]
[325224038,1714596651748,-500.0,0.00053972,120]
[325224039,1714596651757,-708.55,0.00053972,120]
[325224040,1714596651766,-500.0,0.00053972,120]
[325224041,1714596651776,-500.0,0.00053972,120]
[325224042,1714596651785,-500.0,0.00053972,120]
[325224043,1714596651795,-500.0,0.00053972,120]
[325224044,1714596651804,-500.0,0.00053972,120]
[325224045,1714596651813,-500.0,0.00053972,120]
[325224046,1714596651822,-500.0,0.00053972,120]
[325224047,1714596651831,-500.0,0.00053972,120]
[325224048,1714596651841,-2139.31,0.00053972,120]
[325224049,1714596651851,-747.59,0.00053972,120]
[325224050,1714596651860,-500.0,0.00053972,120]
[325224051,1714596651870,-500.0,0.00053972,120]
[325224052,1714596651879,-1819.15,0.00053972,120]
[325224053,1714596651889,-893.59,0.00053972,120]
[325224054,1714596651898,-2548.41,0.00053972,120]
[325224055,1714596651907,-647.78,0.00053972,120]
[325224056,1714596651916,-500.0,0.00053972,120]
[325224057,1714596651926,-972.62,0.00053972,120]
[325224058,1714596651935,-500.0,0.00053972,120]
[325224059,1714596651945,-500.0,0.00053972,120]
[325224060,1714596651957,-500.0,0.00053972,120]
[325224061,1714596651966,-953.99,0.00053972,120]
[325224062,1714596651978,-1932.29,0.00053972,120]
[325224063,1714596651987,-912.85,0.00053972,120]
[325224064,1714596651998,-631.99,0.00053972,120]
[325224065,1714596652007,-500.0,0.00053972,120]
[325224066,1714596652017,-564.95,0.00053972,120]
[325224067,1714596652027,-771.7,0.00053972,120]
[325224068,1714596652038,-500.0,0.00053972,120]
[325224069,1714596652048,-500.0,0.00053972,120]
[325224070,1714596652059,-500.0,0.00053972,5]
[325224071,1714596652068,-2226.85,0.00054,120]
[325224072,1714596652079,-150.0,0.00054,96]
[325224073,1714596652089,-5000.0,0.00054046,120]
[325224074,1714596652099,-932.0,0.0005415,30]
[325224075,1714596652109,-267.650158,0.00054448,2]
[325224076,1714596652118,-424.130374,0.00054448,2]
[325224077,1714596652129,-373.98646,0.00054448,2]
[325224078,1714596652139,-500.0,0.0005452,120]
[325224079,1714596652150,-500.0,0.0005452,120]
[325224080,1714596652160,-500.0,0.0005452,120]
[325224081,1714596652169,-500.0,0.0005452,120]
[325224082,1714596652178,-605.36,0.0005452,120]
[325224083,1714596652188,-635.9,0.0005452,120]
[325224084,1714596652197,-500.0,0.0005452,120]
[325224085,1714596652206,-600.0,0.0005452,120]
[325224086,1714596652216,-151.0,0.0005452,7]
[325224087,1714596652227,-500.0,0.0005452,120]
[325224088,1714596652276,-500.0,0.0005452,120]
[325224089,1714596652285,-500.0,0.0005452,120]
[325224090,1714596652295,-905.44,0.0005452,120]
[325224091,1714596652304,-500.0,0.0005452,120]
[325224092,1714596652313,-500.0,0.0005452,120]
[325224093,1714596652323,-1823.07,0.0005452,120]
[325224094,1714596652332,-500.0,0.0005452,120]
[325224095,1714596652342,-500.0,0.0005452,120]
[325224096,1714596652351,-1540.18,0.0005452,120]
[325224097,1714596652361,-500.0,0.0005452,120]
[325224098,1714596652370,-500.0,0.0005452,120]
[325224099,1714596652379,-747.85,0.0005452,120]
[325224100,1714596652388,-500.0,0.0005452,120]
[325224101,1714596652398,-500.0,0.0005452,120]
[325224102,1714596652406,-500.0,0.0005452,120]
[325224103,1714596652415,-281.862295,0.0005452,7]
[325224104,1714596652424,-199.026093,0.0005452,7]
[325224105,1714596652434,-582.8,0.0005452,120]
[325224106,1714596652443,-500.0,0.0005452,120]
[325224107,1714596652453,-500.0,0.0005452,120]
[325224108,1714596652462,-500.0,0.0005452,120]
[325224109,1714596652471,-500.0,0.0005452,120]
[325224110,1714596652482,-500.0,0.0005452,120]
[325224111,1714596652491,-151.0,0.0005452,7]
[325224112,1714596652500,-783.32,0.0005452,120]
[325224113,1714596652510,-500.0,0.0005452,120]
[325224114,1714596652519,-500.0,0.0005452,30]
[325224115,1714596652528,-500.0,0.0005452,120]
[325224116,1714596652538,-660.58,0.0005452,120]
[325224117,1714596652547,-500.0,0.0005452,120]
[325224118,1714596652556,-528.91,0.0005452,120]
[325224119,1714596652565,-457.74606964,0.0005452,120]
[325224120,1714596652574,-500.0,0.0005452,120]
[325224121,1714596652583,-500.0,0.0005452,120]
[325224122,1714596652593,-651.79,0.0005452,120]
[325224123,1714596652603,-569.39,0.0005452,120]
[325224124,1714596652612,-533.64,0.0005452,120]
[325224125,1714596652622,-893.16,0.0005452,120]
[325224126,1714596652631,-500.0,0.0005452,120]
[325224127,1714596652640,-750.74,0.0005452,120]